[Event "Titled Tuesday Blitz May 24 Late 2022"]
[White "Keymer, Vincent"]
[Black "Golubev, Mikhail"]
[WhiteFideId "12940690"]
[BlackFideId "14100983"]
[WhiteElo "2548"]
[BlackElo "2374"]
[Result "1-0"]
[Round "02"]
[TimeControl "180+1"]
[Date "2022.05.24"]
[WhiteClock "0:00:20"]
[BlackClock "0:00:02"]

1. Nf3 {[%clk 0:03:00]}  d6 {[%clk 0:02:58]} 2. d4 {[%clk 0:03:00]}  Nf6 {[%clk 0:02:58]} 3. c4 {[%clk 0:03:00]}  g6 {[%clk 0:02:57]} 4. g3 {[%clk 0:03:00]}  Bg7 {[%clk 0:02:57]} 5. Bg2 {[%clk 0:03:01]}  O-O {[%clk 0:02:57]} 6. Nc3 {[%clk 0:03:02]}  Nbd7 {[%clk 0:02:57]} 7. O-O {[%clk 0:03:01]}  e5 {[%clk 0:02:57]} 8. e4 {[%clk 0:03:02]}  Re8 {[%clk 0:02:57]} 9. h3 {[%clk 0:03:03]}  b6 {[%clk 0:02:56]} 10. Be3 {[%clk 0:02:54]}  exd4 {[%clk 0:02:52]} 11. Nxd4 {[%clk 0:02:47]}  Bb7 {[%clk 0:02:52]} 12. f3 {[%clk 0:02:31]}  d5 {[%clk 0:02:50]} 13. cxd5 {[%clk 0:02:29]}  Nxd5 {[%clk 0:02:49]} 14. Nxd5 {[%clk 0:02:29]}  Bxd5 {[%clk 0:02:49]} 15. Qd2 {[%clk 0:02:26]}  Ne5 {[%clk 0:02:23]} 16. b3 {[%clk 0:02:10]}  Bb7 {[%clk 0:02:21]} 17. f4 {[%clk 0:01:35]}  c5 {[%clk 0:02:20]} 18. Nb5 {[%clk 0:01:34]}  Qxd2 {[%clk 0:01:57]} 19. Bxd2 {[%clk 0:01:35]}  Rad8 {[%clk 0:01:45]} 20. Bc3 {[%clk 0:01:18]}  Ba6 {[%clk 0:01:34]} 21. a4 {[%clk 0:01:14]}  Nc6 {[%clk 0:01:23]} 22. e5 {[%clk 0:01:12]}  Nd4 {[%clk 0:01:22]} 23. Bxd4 {[%clk 0:01:11]}  cxd4 {[%clk 0:01:22]} 24. Rfd1 {[%clk 0:01:12]}  Bxb5 {[%clk 0:01:02]} 25. axb5 {[%clk 0:01:13]}  Re7 {[%clk 0:01:01]} 26. Bf1 {[%clk 0:00:53]}  g5 {[%clk 0:00:16]} 27. Kg2 {[%clk 0:00:52]}  gxf4 {[%clk 0:00:14]} 28. gxf4 {[%clk 0:00:53]}  Kf8 {[%clk 0:00:11]} 29. Bc4 {[%clk 0:00:52]}  Rc7 {[%clk 0:00:09]} 30. Rd3 {[%clk 0:00:50]}  f6 {[%clk 0:00:06]} 31. e6 {[%clk 0:00:46]}  f5 {[%clk 0:00:06]} 32. Kf3 {[%clk 0:00:45]}  Bf6 {[%clk 0:00:05]} 33. Rg1 {[%clk 0:00:44]}  Rg7 {[%clk 0:00:05]} 34. Rxg7 {[%clk 0:00:34]}  Kxg7 {[%clk 0:00:05]} 35. Rd1 {[%clk 0:00:35]}  Rc8 {[%clk 0:00:03]} 36. Ra1 {[%clk 0:00:31]}  Rc7 {[%clk 0:00:02]} 37. Rg1+ {[%clk 0:00:32]}  Kf8 {[%clk 0:00:02]} 38. Rg8+ {[%clk 0:00:29]}  Ke7 {[%clk 0:00:02]} 39. Ke2 {[%clk 0:00:20]} 1-0


[Site "https://www.chess.com"]

[Event "Titled Tuesday Blitz May 24 Late 2022"]
[White "Kim, Yoon-Young"]
[Black "Jobava, Baadur"]
[WhiteFideId "30908779"]
[BlackFideId "13601520"]
[WhiteElo "2109"]
[BlackElo "2617"]
[Result "0-1"]
[Round "02"]
[TimeControl "180+1"]
[Date "2022.05.24"]
[WhiteClock "0:00:02"]
[BlackClock "0:02:07"]

1. d4 {[%clk 0:02:59]}  c6 {[%clk 0:03:00]} 2. c4 {[%clk 0:02:59]}  d5 {[%clk 0:03:01]} 3. Nf3 {[%clk 0:02:59]}  Nf6 {[%clk 0:02:58]} 4. e3 {[%clk 0:02:59]}  Bg4 {[%clk 0:02:56]} 5. h3 {[%clk 0:02:58]}  Bxf3 {[%clk 0:02:55]} 6. Qxf3 {[%clk 0:02:59]}  e6 {[%clk 0:02:55]} 7. Nc3 {[%clk 0:02:57]}  Nbd7 {[%clk 0:02:51]} 8. Bd2 {[%clk 0:02:55]}  g6 {[%clk 0:02:51]} 9. g4 {[%clk 0:02:40]}  Bg7 {[%clk 0:02:50]} 10. cxd5 {[%clk 0:02:22]}  exd5 {[%clk 0:02:48]} 11. Bd3 {[%clk 0:02:13]}  O-O {[%clk 0:02:46]} 12. g5 {[%clk 0:01:48]}  Ne8 {[%clk 0:02:40]} 13. h4 {[%clk 0:01:48]}  Nd6 {[%clk 0:02:39]} 14. O-O-O {[%clk 0:01:29]}  a5 {[%clk 0:02:34]} 15. Rdg1 {[%clk 0:01:21]}  a4 {[%clk 0:02:33]} 16. h5 {[%clk 0:01:17]}  a3 {[%clk 0:02:33]} 17. b3 {[%clk 0:01:15]}  c5 {[%clk 0:02:32]} 18. Qxd5 {[%clk 0:01:11]}  Nb6 {[%clk 0:02:31]} 19. Qf3 {[%clk 0:00:50]}  cxd4 {[%clk 0:02:28]} 20. exd4 {[%clk 0:00:46]}  Rc8 {[%clk 0:02:28]} 21. hxg6 {[%clk 0:00:39]}  hxg6 {[%clk 0:02:28]} 22. Qh3 {[%clk 0:00:34]}  Re8 {[%clk 0:02:28]} 23. Kb1 {[%clk 0:00:26]}  Bxd4 {[%clk 0:02:27]} 24. Bxg6 {[%clk 0:00:18]}  fxg6 {[%clk 0:02:20]} 25. Qh7+ {[%clk 0:00:19]}  Kf8 {[%clk 0:02:20]} 26. Qxg6 {[%clk 0:00:18]}  Qd7 {[%clk 0:02:17]} 27. Rh7 {[%clk 0:00:08]}  Qf5+ {[%clk 0:02:16]} 28. Qxf5+ {[%clk 0:00:08]}  Nxf5 {[%clk 0:02:17]} 29. Nb5 {[%clk 0:00:08]}  Bg7 {[%clk 0:02:12]} 30. g6 {[%clk 0:00:07]}  Re2 {[%clk 0:02:07]} 31. Bb4+ {[%clk 0:00:07]}  Kg8 {[%clk 0:02:07]} 32. Rd1 {[%clk 0:00:02]} 0-1


[Site "https://www.chess.com"]

[Event "Titled Tuesday Blitz May 24 Late 2022"]
[White "Kobalia, Mikhail"]
[Black "Taichman, Ori"]
[WhiteFideId "4119150"]
[BlackFideId "2804069"]
[WhiteElo "2667"]
[BlackElo "2227"]
[Result "0-1"]
[Round "02"]
[TimeControl "180+1"]
[Date "2022.05.24"]
[WhiteClock "0:00:02"]
[BlackClock "0:00:18"]

1. e4 {[%clk 0:03:00]}  c5 {[%clk 0:02:58]} 2. Nf3 {[%clk 0:03:00]}  Nc6 {[%clk 0:02:57]} 3. Bb5 {[%clk 0:02:58]}  d6 {[%clk 0:02:58]} 4. O-O {[%clk 0:02:58]}  Bd7 {[%clk 0:02:58]} 5. Re1 {[%clk 0:02:58]}  Nf6 {[%clk 0:02:58]} 6. c3 {[%clk 0:02:56]}  a6 {[%clk 0:02:58]} 7. Bf1 {[%clk 0:02:56]}  Bg4 {[%clk 0:02:58]} 8. h3 {[%clk 0:02:57]}  Bxf3 {[%clk 0:02:59]} 9. Qxf3 {[%clk 0:02:57]}  g6 {[%clk 0:02:59]} 10. d3 {[%clk 0:02:57]}  Bg7 {[%clk 0:03:00]} 11. Be3 {[%clk 0:02:58]}  Nd7 {[%clk 0:03:00]} 12. Nd2 {[%clk 0:02:56]}  O-O {[%clk 0:02:59]} 13. Qd1 {[%clk 0:02:56]}  b5 {[%clk 0:02:59]} 14. Nf3 {[%clk 0:02:54]}  b4 {[%clk 0:02:59]} 15. Qa4 {[%clk 0:02:54]}  bxc3 {[%clk 0:02:18]} 16. Qxc6 {[%clk 0:02:53]}  cxb2 {[%clk 0:02:18]} 17. Rab1 {[%clk 0:02:53]}  Ne5 {[%clk 0:02:14]} 18. Nxe5 {[%clk 0:02:45]}  Bxe5 {[%clk 0:02:15]} 19. Qa4 {[%clk 0:02:40]}  Qb6 {[%clk 0:02:13]} 20. Red1 {[%clk 0:02:40]}  Bc3 {[%clk 0:01:58]} 21. d4 {[%clk 0:02:39]}  Rfd8 {[%clk 0:01:50]} 22. Rd3 {[%clk 0:02:33]}  Qb4 {[%clk 0:01:45]} 23. Qxb4 {[%clk 0:01:55]}  cxb4 {[%clk 0:01:46]} 24. Rdd1 {[%clk 0:01:02]}  a5 {[%clk 0:01:43]} 25. d5 {[%clk 0:01:02]}  a4 {[%clk 0:01:42]} 26. Bb5 {[%clk 0:00:59]}  Rdb8 {[%clk 0:01:32]} 27. Bc6 {[%clk 0:00:56]}  Ra6 {[%clk 0:01:08]} 28. e5 {[%clk 0:00:29]}  a3 {[%clk 0:01:05]} 29. exd6 {[%clk 0:00:23]}  exd6 {[%clk 0:00:56]} 30. Bd2 {[%clk 0:00:16]}  b3 {[%clk 0:00:19]} 31. Bxc3 {[%clk 0:00:11]}  bxa2 {[%clk 0:00:19]} 32. Ra1 {[%clk 0:00:02]}  b1=Q {[%clk 0:00:18]} 0-1


[Site "https://www.chess.com"]

[Event "Titled Tuesday Blitz May 24 Late 2022"]
[White "Kowalysko, Roman"]
[Black "Turutin, Alexander"]
[WhiteFideId "30918510"]
[BlackFideId "4180623"]
[WhiteElo "2174"]
[BlackElo "2402"]
[Result "0-1"]
[Round "02"]
[TimeControl "180+1"]
[Date "2022.05.25"]
[WhiteClock "0:01:27"]
[BlackClock "0:01:39"]

1. e4 {[%clk 0:03:00]}  c5 {[%clk 0:02:59]} 2. Nf3 {[%clk 0:02:59]}  e6 {[%clk 0:02:59]} 3. d4 {[%clk 0:02:58]}  cxd4 {[%clk 0:02:57]} 4. Nxd4 {[%clk 0:02:58]}  Nc6 {[%clk 0:02:58]} 5. Nc3 {[%clk 0:02:58]}  a6 {[%clk 0:02:57]} 6. Be2 {[%clk 0:02:54]}  Qc7 {[%clk 0:02:57]} 7. O-O {[%clk 0:02:52]}  Nf6 {[%clk 0:02:55]} 8. Be3 {[%clk 0:02:52]}  b5 {[%clk 0:02:47]} 9. Re1 {[%clk 0:02:48]}  Bb7 {[%clk 0:02:44]} 10. f3 {[%clk 0:02:46]}  b4 {[%clk 0:02:26]} 11. Na4 {[%clk 0:02:44]}  Rb8 {[%clk 0:02:14]} 12. Qd2 {[%clk 0:02:35]}  Bd6 {[%clk 0:02:11]} 13. Nb6 {[%clk 0:02:25]}  Bxh2+ {[%clk 0:02:06]} 14. Kh1 {[%clk 0:02:25]}  Bg3 {[%clk 0:02:05]} 15. Red1 {[%clk 0:02:24]}  O-O {[%clk 0:02:00]} 16. Nxc6 {[%clk 0:02:12]}  Bxc6 {[%clk 0:01:59]} 17. Nc4 {[%clk 0:02:11]}  d5 {[%clk 0:01:54]} 18. exd5 {[%clk 0:02:10]}  exd5 {[%clk 0:01:55]} 19. Nb6 {[%clk 0:01:59]}  Rxb6 {[%clk 0:01:54]} 20. Bxb6 {[%clk 0:01:59]}  Qxb6 {[%clk 0:01:55]} 21. Qd4 {[%clk 0:01:58]}  Qxd4 {[%clk 0:01:49]} 22. Rxd4 {[%clk 0:01:58]}  a5 {[%clk 0:01:50]} 23. a3 {[%clk 0:01:56]}  Be5 {[%clk 0:01:49]} 24. c3 {[%clk 0:01:46]}  Bxd4 {[%clk 0:01:47]} 25. cxd4 {[%clk 0:01:46]}  Rb8 {[%clk 0:01:45]} 26. axb4 {[%clk 0:01:45]}  axb4 {[%clk 0:01:45]} 27. Ra6 {[%clk 0:01:44]}  Bd7 {[%clk 0:01:45]} 28. Ra7 {[%clk 0:01:43]}  Kf8 {[%clk 0:01:43]} 29. b3 {[%clk 0:01:40]}  Bf5 {[%clk 0:01:39]} 30. f4 {[%clk 0:01:37]}  Bc2 {[%clk 0:01:37]} 31. Bh5 {[%clk 0:01:28]}  Nxh5 {[%clk 0:01:36]} 32. Rxf7+ {[%clk 0:01:28]}  Kxf7 {[%clk 0:01:36]} 33. g4 {[%clk 0:01:28]}  Bxb3 {[%clk 0:01:36]} 34. gxh5 {[%clk 0:01:27]}  Bc2 {[%clk 0:01:37]} 35. h6 {[%clk 0:01:27]}  Be4+ {[%clk 0:01:38]} 36. Kh2 {[%clk 0:01:26]}  gxh6 {[%clk 0:01:39]} 37. Kg3 {[%clk 0:01:26]}  b3 {[%clk 0:01:40]} 38. Kg4 {[%clk 0:01:26]}  b2 {[%clk 0:01:41]} 39. f5 {[%clk 0:01:26]}  b1=Q {[%clk 0:01:41]} 40. f6 {[%clk 0:01:27]}  Qg1+ {[%clk 0:01:41]} 41. Kf4 {[%clk 0:01:27]}  Qf2+ {[%clk 0:01:41]} 42. Ke5 {[%clk 0:01:27]}  Qh2# {[%clk 0:01:39]} 0-1


[Site "https://www.chess.com"]

[Event "Titled Tuesday Blitz May 24 Late 2022"]
[White "Krallis, Christos"]
[Black "Joubert, Dantelle"]
[WhiteFideId "4298896"]
[BlackFideId "14310813"]
[WhiteElo "2234"]
[BlackElo "1507"]
[Result "1-0"]
[Round "02"]
[TimeControl "180+1"]
[Date "2022.05.25"]
[WhiteClock "0:00:31"]
[BlackClock "0:00:33"]

1. e4 {[%clk 0:03:00]}  e5 {[%clk 0:02:59]} 2. Nf3 {[%clk 0:02:57]}  Nc6 {[%clk 0:02:59]} 3. d4 {[%clk 0:02:49]}  exd4 {[%clk 0:02:58]} 4. Nxd4 {[%clk 0:02:48]}  Nf6 {[%clk 0:02:57]} 5. Nc3 {[%clk 0:02:48]}  Bb4 {[%clk 0:02:55]} 6. Nxc6 {[%clk 0:02:47]}  bxc6 {[%clk 0:02:53]} 7. Bd3 {[%clk 0:02:47]}  O-O {[%clk 0:02:52]} 8. O-O {[%clk 0:02:46]}  d5 {[%clk 0:02:52]} 9. exd5 {[%clk 0:02:46]}  cxd5 {[%clk 0:02:51]} 10. Qf3 {[%clk 0:02:47]}  c6 {[%clk 0:02:49]} 11. Bg5 {[%clk 0:02:42]}  h6 {[%clk 0:02:49]} 12. Bxf6 {[%clk 0:02:42]}  Qxf6 {[%clk 0:02:48]} 13. Qxf6 {[%clk 0:02:42]}  gxf6 {[%clk 0:02:48]} 14. Ne2 {[%clk 0:02:42]}  a5 {[%clk 0:02:39]} 15. c3 {[%clk 0:02:17]}  Bd6 {[%clk 0:02:36]} 16. Nd4 {[%clk 0:02:16]}  Bd7 {[%clk 0:02:10]} 17. Bf5 {[%clk 0:02:15]}  Be8 {[%clk 0:02:05]} 18. f4 {[%clk 0:01:56]}  a4 {[%clk 0:02:01]} 19. Rf3 {[%clk 0:01:51]}  Rb8 {[%clk 0:01:55]} 20. Rb1 {[%clk 0:01:28]}  c5 {[%clk 0:01:55]} 21. Nc2 {[%clk 0:01:27]}  Bc6 {[%clk 0:01:47]} 22. Rbf1 {[%clk 0:01:06]}  Rfe8 {[%clk 0:01:31]} 23. Ne3 {[%clk 0:00:48]}  h5 {[%clk 0:00:36]} 24. Rg3+ {[%clk 0:00:36]}  Kf8 {[%clk 0:00:35]} 25. Bh7 {[%clk 0:00:36]}  Rxb2 {[%clk 0:00:33]} 26. Nf5 {[%clk 0:00:31]} 1-0


[Site "https://www.chess.com"]

[Event "Titled Tuesday Blitz May 24 Late 2022"]
[White "Livaic, Leon"]
[Black "Avramidou, Anastasia"]
[WhiteFideId "14531534"]
[BlackFideId "4239873"]
[WhiteElo "2540"]
[BlackElo "2183"]
[Result "1-0"]
[Round "02"]
[TimeControl "180+1"]
[Date "2022.05.24"]
[WhiteClock "0:00:47"]
[BlackClock "0:00:02"]

1. d4 {[%clk 0:03:00]}  Nf6 {[%clk 0:02:58]} 2. c4 {[%clk 0:03:00]}  e6 {[%clk 0:02:58]} 3. g3 {[%clk 0:02:58]}  c5 {[%clk 0:02:58]} 4. d5 {[%clk 0:02:53]}  exd5 {[%clk 0:02:58]} 5. cxd5 {[%clk 0:02:54]}  d6 {[%clk 0:02:58]} 6. Bg2 {[%clk 0:02:54]}  g6 {[%clk 0:02:59]} 7. Nc3 {[%clk 0:02:54]}  Bg7 {[%clk 0:03:00]} 8. Nf3 {[%clk 0:02:55]}  O-O {[%clk 0:03:00]} 9. O-O {[%clk 0:02:55]}  Qe7 {[%clk 0:02:59]} 10. Bf4 {[%clk 0:02:51]}  a6 {[%clk 0:02:59]} 11. a4 {[%clk 0:02:50]}  Nbd7 {[%clk 0:02:57]} 12. Re1 {[%clk 0:02:43]}  Nh5 {[%clk 0:02:48]} 13. Bg5 {[%clk 0:02:43]}  f6 {[%clk 0:02:47]} 14. Bd2 {[%clk 0:02:43]}  f5 {[%clk 0:02:47]} 15. Ng5 {[%clk 0:02:39]}  Ne5 {[%clk 0:02:33]} 16. Ne6 {[%clk 0:02:35]}  Bxe6 {[%clk 0:02:31]} 17. dxe6 {[%clk 0:02:36]}  Nf6 {[%clk 0:02:32]} 18. Nd5 {[%clk 0:02:34]}  Nxd5 {[%clk 0:02:30]} 19. Bxd5 {[%clk 0:02:35]}  Kh8 {[%clk 0:02:29]} 20. Bc3 {[%clk 0:02:15]}  Rac8 {[%clk 0:02:21]} 21. Qb3 {[%clk 0:02:01]}  Nc6 {[%clk 0:02:18]} 22. Rad1 {[%clk 0:01:54]}  Bxc3 {[%clk 0:02:09]} 23. bxc3 {[%clk 0:01:50]}  Nd8 {[%clk 0:01:48]} 24. Qb6 {[%clk 0:01:33]}  Nxe6 {[%clk 0:01:16]} 25. Bxe6 {[%clk 0:01:34]}  Qxe6 {[%clk 0:01:16]} 26. Rxd6 {[%clk 0:01:34]}  Qe7 {[%clk 0:01:11]} 27. Red1 {[%clk 0:01:32]}  Rc7 {[%clk 0:01:06]} 28. e3 {[%clk 0:01:29]}  Rfc8 {[%clk 0:01:03]} 29. c4 {[%clk 0:01:28]}  Kg8 {[%clk 0:00:33]} 30. a5 {[%clk 0:01:23]}  Qf7 {[%clk 0:00:14]} 31. Rd8+ {[%clk 0:01:22]}  Rxd8 {[%clk 0:00:10]} 32. Rxd8+ {[%clk 0:01:23]}  Kg7 {[%clk 0:00:10]} 33. Qb2+ {[%clk 0:01:21]}  Kh6 {[%clk 0:00:10]} 34. Qd2 {[%clk 0:00:56]}  Qxc4 {[%clk 0:00:03]} 35. e4+ {[%clk 0:00:56]}  Kh5 {[%clk 0:00:03]} 36. h4 {[%clk 0:00:48]}  Re7 {[%clk 0:00:02]} 37. Qg5# {[%clk 0:00:47]} 1-0


[Site "https://www.chess.com"]

[Event "Titled Tuesday Blitz May 24 Late 2022"]
[White "Lodici, Lorenzo"]
[Black "Yaksin, Oleg"]
[WhiteFideId "884189"]
[BlackFideId "24105880"]
[WhiteElo "2265"]
[BlackElo "2256"]
[Result "1-0"]
[Round "02"]
[TimeControl "180+1"]
[Date "2022.05.24"]
[WhiteClock "0:00:08"]
[BlackClock "0:00:06"]

1. c4 {[%clk 0:03:00]}  e5 {[%clk 0:02:48]} 2. Nc3 {[%clk 0:03:00]}  Nc6 {[%clk 0:02:47]} 3. Nf3 {[%clk 0:03:00]}  Bb4 {[%clk 0:02:47]} 4. Nd5 {[%clk 0:02:56]}  Be7 {[%clk 0:02:47]} 5. e4 {[%clk 0:02:45]}  Bc5 {[%clk 0:02:25]} 6. Nxe5 {[%clk 0:02:43]}  Bxf2+ {[%clk 0:02:06]} 7. Kxf2 {[%clk 0:02:42]}  Nxe5 {[%clk 0:02:06]} 8. d4 {[%clk 0:02:39]}  Ng6 {[%clk 0:01:48]} 9. Qf3 {[%clk 0:02:23]}  c6 {[%clk 0:01:44]} 10. Ne3 {[%clk 0:02:16]}  d6 {[%clk 0:01:41]} 11. Bd3 {[%clk 0:02:06]}  Nf6 {[%clk 0:01:39]} 12. Nf5 {[%clk 0:02:00]}  O-O {[%clk 0:01:37]} 13. h4 {[%clk 0:01:58]}  h5 {[%clk 0:01:33]} 14. Bg5 {[%clk 0:01:58]}  c5 {[%clk 0:01:26]} 15. Bxf6 {[%clk 0:01:02]}  Qxf6 {[%clk 0:01:21]} 16. Nh6+ {[%clk 0:01:02]}  Kh7 {[%clk 0:01:20]} 17. Qxf6 {[%clk 0:01:00]}  gxf6 {[%clk 0:01:21]} 18. Nf5 {[%clk 0:01:00]}  cxd4 {[%clk 0:01:13]} 19. Rad1 {[%clk 0:00:59]}  Ne5 {[%clk 0:00:58]} 20. Be2 {[%clk 0:00:56]}  Bxf5 {[%clk 0:00:51]} 21. exf5 {[%clk 0:00:56]}  d3 {[%clk 0:00:47]} 22. Bxd3 {[%clk 0:00:55]}  Rac8 {[%clk 0:00:43]} 23. b3 {[%clk 0:00:45]}  Ng4+ {[%clk 0:00:41]} 24. Kf3 {[%clk 0:00:45]}  Rfe8 {[%clk 0:00:40]} 25. Rhe1 {[%clk 0:00:44]}  Re5 {[%clk 0:00:20]} 26. Rxe5 {[%clk 0:00:35]}  Nxe5+ {[%clk 0:00:16]} 27. Kf4 {[%clk 0:00:35]}  Rg8 {[%clk 0:00:16]} 28. Be4 {[%clk 0:00:32]}  Rg4+ {[%clk 0:00:14]} 29. Ke3 {[%clk 0:00:33]}  Rxh4 {[%clk 0:00:12]} 30. Rxd6 {[%clk 0:00:32]}  Kg7 {[%clk 0:00:11]} 31. Bxb7 {[%clk 0:00:31]}  Rh1 {[%clk 0:00:07]} 32. Rd2 {[%clk 0:00:25]}  Ng4+ {[%clk 0:00:05]} 33. Ke2 {[%clk 0:00:23]}  Ra1 {[%clk 0:00:04]} 34. c5 {[%clk 0:00:20]}  Rc1 {[%clk 0:00:04]} 35. b4 {[%clk 0:00:19]}  Ne5 {[%clk 0:00:04]} 36. a3 {[%clk 0:00:19]}  Rc3 {[%clk 0:00:04]} 37. Ra2 {[%clk 0:00:17]}  Nc4 {[%clk 0:00:02]} 38. a4 {[%clk 0:00:17]}  Ne5 {[%clk 0:00:01]} 39. Bd5 {[%clk 0:00:16]}  Rd3 {[%clk 0:00:01]} 40. Rd2 {[%clk 0:00:15]}  Rc3 {[%clk 0:00:02]} 41. c6 {[%clk 0:00:10]}  h4 {[%clk 0:00:02]} 42. b5 {[%clk 0:00:09]}  Rc5 {[%clk 0:00:02]} 43. Be4 {[%clk 0:00:09]}  Kf8 {[%clk 0:00:02]} 44. Rc2 {[%clk 0:00:09]}  Rxc2+ {[%clk 0:00:02]} 45. Bxc2 {[%clk 0:00:10]}  Ke7 {[%clk 0:00:02]} 46. Bb3 {[%clk 0:00:11]}  Kd6 {[%clk 0:00:03]} 47. Ke3 {[%clk 0:00:11]}  Ng4+ {[%clk 0:00:03]} 48. Kf4 {[%clk 0:00:11]}  Ne5 {[%clk 0:00:04]} 49. a5 {[%clk 0:00:11]}  Kc7 {[%clk 0:00:04]} 50. Bd5 {[%clk 0:00:11]}  Nd3+ {[%clk 0:00:04]} 51. Kg4 {[%clk 0:00:11]}  Nb4 {[%clk 0:00:05]} 52. Be4 {[%clk 0:00:11]}  Na2 {[%clk 0:00:04]} 53. Kxh4 {[%clk 0:00:11]}  Nc3 {[%clk 0:00:05]} 54. Bd3 {[%clk 0:00:11]}  a6 {[%clk 0:00:04]} 55. b6+ {[%clk 0:00:11]}  Kxc6 {[%clk 0:00:05]} 56. Bxa6 {[%clk 0:00:11]}  Nd5 {[%clk 0:00:04]} 57. g3 {[%clk 0:00:10]}  Ne3 {[%clk 0:00:04]} 58. Bd3 {[%clk 0:00:10]}  Kb7 {[%clk 0:00:04]} 59. Kh5 {[%clk 0:00:10]}  Nd5 {[%clk 0:00:04]} 60. Kh6 {[%clk 0:00:10]}  Nb4 {[%clk 0:00:04]} 61. Bb5 {[%clk 0:00:09]}  Nd5 {[%clk 0:00:04]} 62. Kg7 {[%clk 0:00:09]}  Ne3 {[%clk 0:00:05]} 63. Bd3 {[%clk 0:00:09]}  Ng2 {[%clk 0:00:05]} 64. Kxf6 {[%clk 0:00:08]}  Nf4 {[%clk 0:00:06]} 65. gxf4 {[%clk 0:00:08]} 1-0


[Site "https://www.chess.com"]

[Event "Titled Tuesday Blitz May 24 Late 2022"]
[White "Lopez Gracia, Fernando"]
[Black "Barp, Alberto"]
[WhiteFideId "2207184"]
[BlackFideId "872555"]
[WhiteElo "2411"]
[BlackElo "2229"]
[Result "0-1"]
[Round "02"]
[TimeControl "180+1"]
[Date "2022.05.25"]
[WhiteClock "0:00:17"]
[BlackClock "0:00:13"]

1. c4 {[%clk 0:03:00]}  c5 {[%clk 0:02:55]} 2. Nf3 {[%clk 0:03:00]}  Nc6 {[%clk 0:02:54]} 3. Nc3 {[%clk 0:02:56]}  Nf6 {[%clk 0:02:49]} 4. d4 {[%clk 0:02:56]}  cxd4 {[%clk 0:02:49]} 5. Nxd4 {[%clk 0:02:57]}  d6 {[%clk 0:02:45]} 6. e4 {[%clk 0:02:56]}  Bd7 {[%clk 0:02:42]} 7. Be2 {[%clk 0:02:55]}  Rc8 {[%clk 0:02:41]} 8. Be3 {[%clk 0:02:55]}  a6 {[%clk 0:02:40]} 9. O-O {[%clk 0:02:54]}  e6 {[%clk 0:02:39]} 10. Rc1 {[%clk 0:02:49]}  Be7 {[%clk 0:02:36]} 11. Nc2 {[%clk 0:02:46]}  O-O {[%clk 0:02:35]} 12. Qd2 {[%clk 0:02:47]}  Qa5 {[%clk 0:02:17]} 13. Rfd1 {[%clk 0:02:45]}  Rfd8 {[%clk 0:02:16]} 14. b3 {[%clk 0:02:39]}  Be8 {[%clk 0:02:10]} 15. Qe1 {[%clk 0:02:38]}  Qc7 {[%clk 0:02:05]} 16. Na4 {[%clk 0:02:35]}  Qb8 {[%clk 0:02:03]} 17. Nb6 {[%clk 0:02:30]}  Rc7 {[%clk 0:02:03]} 18. f3 {[%clk 0:02:30]}  h6 {[%clk 0:01:57]} 19. Qf2 {[%clk 0:02:29]}  Nd7 {[%clk 0:01:44]} 20. Nxd7 {[%clk 0:02:15]}  Rdxd7 {[%clk 0:01:42]} 21. Bb6 {[%clk 0:02:13]}  Rc8 {[%clk 0:01:41]} 22. Rd2 {[%clk 0:02:11]}  Bd8 {[%clk 0:01:33]} 23. Rcd1 {[%clk 0:02:11]}  Bxb6 {[%clk 0:01:32]} 24. Qxb6 {[%clk 0:02:12]}  Rcd8 {[%clk 0:01:31]} 25. Ne3 {[%clk 0:02:10]}  Na7 {[%clk 0:01:23]} 26. c5 {[%clk 0:02:01]}  Nc8 {[%clk 0:01:17]} 27. Qa5 {[%clk 0:01:58]}  Qa7 {[%clk 0:00:57]} 28. b4 {[%clk 0:01:58]}  Qb8 {[%clk 0:00:29]} 29. Kf2 {[%clk 0:01:50]}  Kh7 {[%clk 0:00:23]} 30. f4 {[%clk 0:01:43]}  Ne7 {[%clk 0:00:17]} 31. cxd6 {[%clk 0:01:20]}  Rxd6 {[%clk 0:00:17]} 32. Qxd8 {[%clk 0:01:20]}  Rxd8 {[%clk 0:00:17]} 33. Rxd8 {[%clk 0:01:21]}  Qxf4+ {[%clk 0:00:18]} 34. Bf3 {[%clk 0:01:21]}  Bc6 {[%clk 0:00:18]} 35. g3 {[%clk 0:01:18]}  Qf6 {[%clk 0:00:18]} 36. Ng4 {[%clk 0:01:10]}  Qb2+ {[%clk 0:00:16]} 37. R1d2 {[%clk 0:01:11]}  Qxb4 {[%clk 0:00:16]} 38. R8d4 {[%clk 0:01:04]}  Qc5 {[%clk 0:00:15]} 39. Ke2 {[%clk 0:01:01]}  Ng6 {[%clk 0:00:15]} 40. h4 {[%clk 0:01:01]}  Ne5 {[%clk 0:00:15]} 41. Nxe5 {[%clk 0:01:01]}  Qxe5 {[%clk 0:00:16]} 42. Kf2 {[%clk 0:01:01]}  Qc5 {[%clk 0:00:15]} 43. Kg2 {[%clk 0:01:01]}  Qc3 {[%clk 0:00:14]} 44. R4d3 {[%clk 0:00:59]}  Qe5 {[%clk 0:00:14]} 45. Rd4 {[%clk 0:00:58]}  a5 {[%clk 0:00:13]} 46. Kf2 {[%clk 0:00:53]}  g5 {[%clk 0:00:13]} 47. hxg5 {[%clk 0:00:52]}  hxg5 {[%clk 0:00:14]} 48. Rc4 {[%clk 0:00:25]}  Kg7 {[%clk 0:00:14]} 49. Rcd4 {[%clk 0:00:24]}  Qc5 {[%clk 0:00:14]} 50. Ke2 {[%clk 0:00:23]}  Bb5+ {[%clk 0:00:13]} 51. Ke1 {[%clk 0:00:22]}  Kf6 {[%clk 0:00:13]} 52. e5+ {[%clk 0:00:20]}  Qxe5+ {[%clk 0:00:12]} 53. Re4 {[%clk 0:00:19]}  Qxg3+ {[%clk 0:00:13]} 54. Rf2 {[%clk 0:00:17]}  Qg1+ {[%clk 0:00:13]} 55. Rf1 {[%clk 0:00:17]}  Qxf1+ {[%clk 0:00:13]} 0-1


[Site "https://www.chess.com"]

[Event "Titled Tuesday Blitz May 24 Late 2022"]
[White "Mangialardo, Tiago Carvalho"]
[Black "Ronka, Erik"]
[WhiteFideId "2130718"]
[BlackFideId "505080"]
[WhiteElo "2154"]
[BlackElo "2264"]
[Result "0-1"]
[Round "02"]
[TimeControl "180+1"]
[Date "2022.05.25"]
[WhiteClock "0:00:02"]
[BlackClock "0:00:29"]

1. e4 {[%clk 0:03:00]}  e5 {[%clk 0:02:58]} 2. Nf3 {[%clk 0:03:01]}  Nc6 {[%clk 0:02:58]} 3. d4 {[%clk 0:02:59]}  exd4 {[%clk 0:02:58]} 4. Nxd4 {[%clk 0:02:59]}  Nf6 {[%clk 0:02:56]} 5. Nc3 {[%clk 0:02:58]}  Bb4 {[%clk 0:02:48]} 6. Nxc6 {[%clk 0:02:58]}  bxc6 {[%clk 0:02:48]} 7. Bd3 {[%clk 0:02:58]}  d5 {[%clk 0:02:47]} 8. exd5 {[%clk 0:02:56]}  cxd5 {[%clk 0:02:46]} 9. Bd2 {[%clk 0:02:53]}  O-O {[%clk 0:02:45]} 10. O-O {[%clk 0:02:52]}  Bg4 {[%clk 0:02:41]} 11. Be2 {[%clk 0:02:49]}  Be6 {[%clk 0:02:36]} 12. Bf3 {[%clk 0:02:47]}  Rb8 {[%clk 0:02:36]} 13. a3 {[%clk 0:02:45]}  Bd6 {[%clk 0:02:34]} 14. Rb1 {[%clk 0:02:40]}  h6 {[%clk 0:02:23]} 15. Be3 {[%clk 0:02:37]}  c5 {[%clk 0:02:20]} 16. Ne2 {[%clk 0:01:45]}  Qc7 {[%clk 0:02:15]} 17. h3 {[%clk 0:01:30]}  Rfe8 {[%clk 0:02:09]} 18. Qd2 {[%clk 0:01:20]}  d4 {[%clk 0:01:10]} 19. Bf4 {[%clk 0:01:19]}  Bd5 {[%clk 0:01:07]} 20. Bxd5 {[%clk 0:00:58]}  Nxd5 {[%clk 0:01:08]} 21. Bxd6 {[%clk 0:00:57]}  Qxd6 {[%clk 0:01:09]} 22. c3 {[%clk 0:00:39]}  Qa6 {[%clk 0:00:46]} 23. Rfe1 {[%clk 0:00:19]}  d3 {[%clk 0:00:37]} 24. Nf4 {[%clk 0:00:02]}  Nxf4 {[%clk 0:00:31]} 25. Qxf4 {[%clk 0:00:03]}  c4 {[%clk 0:00:32]} 26. Qd4 {[%clk 0:00:02]}  Rbd8 {[%clk 0:00:29]} 0-1


[Site "https://www.chess.com"]